{"text_format":"1","workbook":"xlsx","n_sheets":2,"sheets":["FORMATO","2. LISTAS"],"not_rendered":{"charts":0,"images":5,"macros":1,"external_links":1,"defined_names":91,"comments":0,"pivot_tables":0},"unopened":[],"bounds":{"document_bytes":16777216,"sheet_cells":100000,"rows_first":2000,"rows_last":500,"rows_between":2000,"halvings":0,"cell_chars":16384,"cell_head_chars":4096},"cells_cut":0,"cells_raw":0,"read":"whole","date_system":"1900"}

{"sheet":"FORMATO","index":0,"n_rows":47,"n_cols":5,"rows_kept":47,"cut":false,"hidden":false,"merged":[[33,1,33,2],[23,1,23,2],[28,1,28,2],[29,1,29,2],[30,1,30,2],[31,1,31,2],[32,1,32,2],[46,0,46,2],[5,0,5,2],[0,0,2,0],[49,0,49,3],[48,0,48,3],[22,0,22,2],[6,3,6,4],[0,1,2,2],[2,3,2,4],[41,0,44,0],[35,0,35,2],[37,0,40,0],[24,1,24,2],[25,1,25,2],[26,1,26,2],[27,1,27,2]]}
[null,"PROCESO ADQUISICIÓN DE BIENES Y SERVICIOS\n\nFORMATO - Solicitud de Trámites Relacionados con Estudios de Sector y/o Costos",null,"F13.P3.ABS","2026-04-13"]
[null,null,null,"Versión 4","Pág. 1 de 1"]
[null,null,null,"Clasificación de la Información: Pública"]
[]
[]
["Instrucciones:\n1. Por favor diligenciar las totalidad de los campos en amarillo.\n2. Para solicitar la ELABORACIÓN DE ESTUDIO debe anexar todos los documentos técnicos estructurados por el área líder de la necesidad de contratación, debidamente aprobados por  la Dirección de Abastecimiento.  \n3.  Para solcitar una ACTUALIZACIÓN DE ESTUDIO debe cumplir dos condiciones: (i)  ser unicamente actualización de precios por cambio de vigencia  y  (ii)  no se genera modificación a los Documentos Técnicos,  en consecuencia se toman como referencia los documentos técnicos previamente aprobados por la Dirección de Abastecimiento. \n4. Todas las solicitudes deben ser remitidas por el director de la dependencia líder de la necesidad de contratación. \n5. La solicitudes de REVISION DE DOCUMENTOS TÉCNICOS deben ser remitidas a los correos electrónicos estudiosdesector@icbf.gov.co, direcciondecontratacion@icbf.gov.co y revisionFCT.SMO@icbf.gov.co\n6. Las demás solicitudes se deben remitir únicamente al correo electrónico estudiosdesector@icbf.gov.co. \n7. No se dará trámite a solicitudes enviadas a otros correos con el fin de garantizar el debido seguimiento a los procesos."]
[null,null,null,{"$f":"+IF((COUNTIF(C9:C21,\"\")+COUNTIF(C38:C45,\"\"))>0,\"¡EXISTEN DATOS FALTANTES!\",\"FORMATO VÁLIDO\")","v":"¡EXISTEN DATOS FALTANTES!"}]
["NO. ÍTEM","ÍTEM","INFORMACIÓN DEL PROCESO"]
[1,"Dependencia solicitante"]
[2,"Subdirección o grupo solicitante"]
[3,"Director o Subdirector que radica la solicitud "]
[4,"Consecutivo PACCO"]
[5,"Vigencia ejecución del proceso (año)"]
[6,"¿Cuenta con vigencias futuras?"]
[7,"Objeto del proceso"]
[8,"Tipo de solicitud requerido"]
[9,"Tipo de Estudio"]
[10,"Presupuesto estimado "]
[11,"Plazo de ejecución en meses"]
[12,"Fecha inicio de ejecución"]
[13,"No. de Memorando con la solicitud de Elaboración de Estudio"]
[]
["Adjuntar a la solicitud los siguientes DOCUMENTOS MÍNIMOS:"]
["NO. ÍTEM","DOCUMENTO / CORREO "]
[1,"Formato Ficha de Condiciones Técnicas - FCT"]
[2,"Anexo  - Personal Mínimo Requerido para la Prestación del Servicio y/o Entrega del Bien"]
[3,"Anexo - Matriz de identificación, valoración, y asignación de riesgos "]
[4,"Anexo -Minutas patrón (para procesos que incluyan alimentación avaladas por la Dirección de Nutrición)"]
[5,"Anexo - Listado de alimentos (para procesos que incluyan alimentación con minutas avaladas por la Dirección de Nutrición)"]
[6,"Anexo - Estadísticas de consumo de los últimos 3 años. "]
[7,"Anexo - Estimación presupuestal (aplica para revisión de presupuestos)"]
[8,"Demás anexos que se mencionen en la FCT"]
[9,"Correo aprobación Subbdirección de Mejoramiento Organizacional a las obligaciones SIGE."]
[10,"Correo aprobación coherencia entre objeto contractual y lineamiento de programación - Emitido por la Dirección Financiera"]
[]
["Personas de contacto en el área líder de la necesidad de contratación(*)"]
["CONTACTO","DESCRIPCIÓN","DATOS"]
["Contacto 1","Nombre"]
[null,"Ext. o Cel."]
[null,"Cargo"]
[null,"Correo electrónico"]
["Contacto 2","Nombre"]
[null,"Ext. o Cel."]
[null,"Cargo"]
[null,"Correo electrónico"]
[]
["¡Antes de imprimir este documento… piense en el medio ambiente!  \n     Cualquier copia impresa de este documento se considera como COPIA NO CONTROLADA.\n\nLOS DATOS PROPORCIONADOS SERÁN TRATADOS DE ACUERDO A LA POLÍTICA DE TRATAMIENTO DE DATOS PERSONALES DEL ICBF Y A LA LEY 1581 DE 2012"]

{"sheet":"2. LISTAS","index":1,"n_rows":40,"n_cols":47,"rows_kept":40,"cut":false,"hidden":true,"merged":[[1,0,1,1],[1,3,1,4],[1,8,1,10]]}
[]
["MODALIDAD SELECCIÓN",null,null,"ESTADO",null,null,null,null,null,null,null,null,null,"ÁREAS 1","ÁREAS 2",{"$f":"+FORMATO!C9","v":0},null,null,"COMPLEJIDAD",null,"DIAS",null,"ACTUALIZACIÓN ES",null,null,null,"DIAS FESTIVOS",null,"Valor Unitario / Valor Total",null,"Clasificación Estudios (procesos y reprocesos)","INDICADORES","Vigencias futuras","Se busca suscribir un contrato?",null,"Se adelantó el proceso de contratación?","Año gráficas",null,"Mes gráficas",null,"Estado en el SECOP",null,null,"Medidas de tendencia central",null,null,"Condiciones indicadores"]
[null,null,null,"En curso - revisión DAB",null,"TIPO DE SOLICITUD",null,"TIPO DE ESTUDIO",null,{"$f":"+FORMATO!C16","v":0},null,{"$f":"+_xlfn._xlws.SORT(M3:M40,1,1)","v":"Dirección Administrativa "},{"$f":"+N3","v":"Oficina Control Interno"},"Oficina Control Interno","No aplica",{"$f":"+IF(N3=$P$2,O3,\"X\")","v":"X"},{"$f":"+_xlfn._xlws.SORT(P3:P40,1,1)","v":"X"},null,"Baja",null,10,null,"Act. Simple",null,1,null,"2023-01-09",null,"Valor Unitario",null,"D1","De referencia","Si","Si",null,"Si",2012,null,"2017-01-01",null,"Adjudicado y Celebrado","SECPO II",null,"Media geométrica",null,null,"Mayor o igual a"]
["Licitación Pública",null,null,"En curso - ajustes del área técnica",null,"Revisión documentos técnicos","D1","Estudio de sector","ES",{"$f":"+IF($J$3=$F$4,\"Revisión\",H4)","v":"Estudio de sector"},null,"Dirección de Abastecimiento",{"$f":"+N4","v":"Oficina Control Interno Disciplinario Interno"},"Oficina Control Interno Disciplinario Interno","No aplica",{"$f":"+IF(N4=$P$2,O4,\"X\")","v":"X"},"X",null,"Media",null,12,null,"Act. Mercado",null,5,null,"2023-03-20",null,"No aplica",null,"D2","Propuesto","No","No",null,"No",2013,null,"2017-02-01",null,"Adjudicado","SECOP I",null,"No aplica",null,null,"Menor o igual a"]
["Concurso de Méritos",null,null,"En curso - elaboración de ESYC por parte de la DAB",null,"Elaboración de Estudio","E1","Estudio de costos","EC",{"$f":"+IF($J$3=$F$4,\"X\",H5)","v":"Estudio de costos"},null,"Dirección de Contratación ","Oficina Asesora de Comunicaciones","Oficina Asesora de Comunicaciones","No aplica","X","X",null,"Alta",null,30,null,"No aplica",null,null,null,"2023-04-06",null,"Valor Total",null,"D3","Por macro","No aplica",null,null,"No aplica",2014,null,"2017-03-01",null,"Celebrado","SECOP I",null,"Promedio acotado por la desviación estándar",null,null,"Igual a "]
["Selección Abreviada - Acuerdo Marco de Precios",null,null,"En curso - revisión DCO",null,"Actualización de Estudio",null,"Precios de referencia","PR",{"$f":"+IF($J$3=$F$4,\"X\",H6)","v":"Precios de referencia"},null,"Dirección de Familias, Comunidades y Pueblos","Oficina de Cooperación","Oficina de Cooperación","No aplica","X","X",null,null,null,null,null,null,null,null,null,"2023-04-07",null,null,null,"D4","No aplica",null,null,null,null,2015,null,"2017-04-01",null,"Borrador","SECOP I",null,"Promedio de las 3 cot más bajas",null,null,"Menor a"]
["Selección Abreviada - Bolsa mercantíl",null,null,"Devuelto ",null,null,null,"Revisión presupuesto","RP",{"$f":"+IF($J$3=$F$4,\"X\",H7)","v":"Revisión presupuesto"},null,"Dirección de Infancias y Adolescencias","Oficina Jurídica","Oficina Jurídica","No aplica","X","X",null,null,null,null,null,null,null,null,null,"2023-05-01",null,null,null,"D5",null,null,null,null,null,2016,null,"2017-05-01",null,"Convocado","SECOP I",null,"Promedio de las 4 cot más bajas",null,null,"Mayor a"]
["Selección Abreviada - Menor cuantía",null,null,"Descartado por el área técnica",null,null,null,null,null,null,null,"Dirección de Nutrición","Oficina de inspección, vigilancia y control, y calidad de servicios","Oficina de inspección, vigilancia y control, y calidad de servicios","No aplica","X","X",null,null,null,null,null,null,null,null,null,"2023-05-22",null,null,null,"D6",null,null,null,null,null,2017,null,"2017-06-01",null,"Descartado","SECOP I",null,"Promedio de las 5 cot más bajas",null,null,"No aplica"]
["Selección Abreviada - Subasta Inversa",null,null,"Entregado",null,null,null,null,null,null,null,"Dirección de Planeación y Control de Gestión","Oficina Gestión Regional","Oficina Gestión Regional","No aplica","X","X",null,null,null,null,null,null,null,null,null,"2023-06-12",null,null,null,"E1",null,null,null,null,null,2018,null,"2017-07-01",null,"Desierto ","SECOP I",null,"Promedio de las 6 cot más bajas"]
["Contratación Directa - Estatuto General de Contratación",null,null,null,null,null,null,null,null,null,null,"Dirección de Primera Infancia","Dirección de Tecnologías de la Información","Dirección de Tecnologías de la Información","Subdirección de Recursos Tecnológicos ","X","X",null,null,null,null,null,null,null,null,null,"2023-06-19",null,null,null,"E2",null,null,null,null,null,2019,null,"2017-08-01",null,"Liquidado","SECOP I",null,"Promedio de las 7 cot más bajas"]
["Mínima Cuantía",null,null,null,null,null,null,null,null,null,null,"Dirección de Protección Especial","X","Dirección de Tecnologías de la Información","Subdirección de Sistemas Integrados de Información ","X","X",null,null,null,null,null,null,null,null,null,"2023-07-03",null,null,null,"E3",null,null,null,null,null,2020,null,"2017-09-01",null,"No aplica",null,null,"Promedio de las 8 cot más bajas"]
["Convenio o contrato interadministrativo",null,null,null,null,null,null,null,null,null,null,"Dirección de Relación con la Ciudadanía","Dirección Sistema Nacional de Bienestar Familiar","Dirección Sistema Nacional de Bienestar Familiar","Subdirección de Articulación Nacinal del SNBF","X","X",null,null,null,null,null,null,null,null,null,"2023-07-20",null,null,null,"E4",null,null,null,null,null,null,null,"2017-10-01",null,"Proceso en evaluación y observaciones","SECPO II",null,"Promedio simple"]
["Convenio de Cooperaciòn Internacional",null,null,null,null,null,null,null,null,null,null,"Dirección de Talento Humano","X","Dirección Sistema Nacional de Bienestar Familiar","Subdirección de Articulación Territorial del SNBF","X","X",null,null,null,null,null,null,null,null,null,"2023-08-07",null,null,null,"E5",null,null,null,null,null,null,null,"2017-11-01",null,"Publicado","SECPO II",null,"Promedio sin extremos"]
["Convenio Marco",null,null,null,null,null,null,null,null,null,null,"Dirección de Tecnologías de la Información","X","Dirección Sistema Nacional de Bienestar Familiar","Subdirección de autoridades administrativas","X","X",null,null,null,null,null,null,null,null,null,"2023-08-21",null,null,null,"E6",null,null,null,null,null,null,null,"2017-12-01",null,"Revocado","SECOP I",null,"Promedio sin la más alta"]
["Convenio de asociación (Art. 5 Dec. 092/17)",null,null,null,null,null,null,null,null,null,null,"Dirección Financiera ","Dirección de Planeación y Control de Gestión","Dirección de Planeación y Control de Gestión","Subdirección de Mejoramiento Organizacional","X","X",null,null,null,null,null,null,null,null,null,"2023-10-16",null,null,null,"C1",null,null,null,null,null,null,null,"2018-01-01",null,"Terminado anormalmente despues de convocado","SECOP I",null,"MTC combinada"]
["Contrato de colaboración (Art. 2 Dec. 092/17)",null,null,null,null,null,null,null,null,null,null,"Dirección Sistema Nacional de Bienestar Familiar","X","Dirección de Planeación y Control de Gestión","Subdirección de Monitoreo y Evaluación","X","X",null,null,null,null,null,null,null,null,null,"2023-11-06",null,null,null,"C2",null,null,null,null,null,null,null,"2018-02-01",null,"Terminado sin liquidar","SECOP I",null,"Precio ES entregado en vigencia anterior, actualizado con IPC"]
["Contrato régimen especial de aporte",null,null,null,null,null,null,null,null,null,null,"Oficina Asesora de Comunicaciones","X","Dirección de Planeación y Control de Gestión","Subdirección de Programación","X","X",null,null,null,null,null,null,null,null,null,"2023-11-13",null,null,null,"C3",null,null,null,null,null,null,null,"2018-03-01",null,"Presentación de la oferta","SECPO II"]
[null,null,null,null,null,null,null,null,null,null,null,"Oficina Control Interno","Dirección de Primera Infancia","Dirección de Primera Infancia","Subdirección de Atención Integral Interinstitucional ","X","X"]
[null,null,null,null,null,null,null,null,null,null,null,"Oficina Control Interno Disciplinario Interno","X","Dirección de Primera Infancia","Subdirección de Atención Integral Familiar Comunitaria","X","X",null,null,null,null,null,null,null,null,null,"2023-12-08",null,null,null,"C4",null,null,null,null,null,null,null,"2018-04-01"]
[null,null,null,"No aplica",null,null,null,null,null,null,null,"Oficina de Cooperación","X","Dirección de Primera Infancia","Subdirección de Atención Integral Propia e Intercultural","X","X",null,null,null,null,null,null,null,null,null,null,null,null,null,"A1"]
[null,null,null,null,null,null,null,null,null,null,null,"Oficina de inspección, vigilancia y control, y calidad de servicios","Dirección de Infancias y Adolescencias","Dirección de Infancias y Adolescencias","Subdirección de Atención Integral a Niños, Niñas y Adolescentes. ","X","X",null,null,null,null,null,null,null,null,null,"2023-12-25",null,null,null,"A2",null,null,null,null,null,null,null,"2018-05-01"]
["Cuadro solo informativo","Requiere ES o EC","Requiere Comité de Contratación",null,null,null,null,null,null,null,null,"Oficina Gestión Regional","X","Dirección de Infancias y Adolescencias","Subdirección de Prevención de Vulneraciones a Niños, Niñas y adolescentes. ","X","X",null,null,null,null,null,null,null,null,null,"2024-01-01",null,null,null,"A3",null,null,null,null,null,null,null,"2018-06-01"]
["Trámite o modalidad de contratación",null,null,null,null,null,null,null,null,null,null,"Oficina Jurídica","Dirección de Familias, Comunidades y Pueblos","Dirección de Familias, Comunidades y Pueblos","Subdirección de Familias y Comunidades","X","X",null,null,null,null,null,null,null,null,null,"2024-01-08",null,null,null,"A4",null,null,null,null,null,null,null,"2018-07-01"]
[null,"NO","SI",null,null,null,null,null,null,null,null,"X","X","Dirección de Familias, Comunidades y Pueblos","Subdirección de Pueblos Étnicos y Campesinos","X","X",null,null,null,null,null,null,null,null,null,"2024-03-25",null,null,null,null,null,null,null,null,null,null,null,"2018-08-01"]
["Adición","NO","SI",null,null,null,null,null,null,null,null,"X","Dirección de Protección Especial","Dirección de Protección Especial","Subdirección de Restablecimiento de Derechos","X","X",null,null,null,null,null,null,null,null,null,"2024-03-28",null,null,null,null,null,null,null,null,null,null,null,"2018-09-01"]
["Convenio interadministrativo","SI","SI",null,null,null,null,null,null,null,null,"X","X","Dirección de Protección Especial","Subdirección de Responsabilidad Penal","X","X",null,null,null,null,null,null,null,null,null,"2024-03-29",null,null,null,null,null,null,null,null,null,null,null,"2018-10-01"]
["Contrato de Aporte","NO","SI",null,null,null,null,null,null,null,null,"X","X","Dirección de Protección Especial","Subdirección de Adopciones","X","X",null,null,null,null,null,null,null,null,null,"2024-05-01",null,null,null,null,null,null,null,null,null,null,null,"2018-11-01"]
["Contratación Directa","NO","SI",null,null,null,null,null,null,null,null,"X","Dirección de Nutrición","Dirección de Nutrición","Subdirección de Gestión Estratégica para el Desarrollo Humano a la Alimentación","X","X",null,null,null,null,null,null,null,null,null,"2024-05-13",null,null,null,null,null,null,null,null,null,null,null,"2018-12-01"]
["Orden de Compra derivada de Acuerdo Marco de Precios","NO","NO",null,null,null,null,null,null,null,null,"X","X","Dirección de Nutrición","Subdirección de Atención en Alimentación y Nutrición","X","X",null,null,null,null,null,null,null,null,null,"2024-06-03"]
["Orden de Compra Grandes Superficies","NO","SI",null,null,null,null,null,null,null,null,"X","Dirección de Talento Humano","Dirección de Talento Humano","No aplica","X","X",null,null,null,null,null,null,null,null,null,"2024-06-10"]
["Orden de Compra Agregacion de demanda","SI","NO",null,null,null,null,null,null,null,null,"X","Dirección de Relación con la Ciudadanía","Dirección de Relación con la Ciudadanía","No aplica","X","X",null,null,null,null,null,null,null,null,null,"2024-07-01"]
["Mínima Cuantía","SI","SI",null,null,null,null,null,null,null,null,"X","Dirección Financiera ","Dirección Financiera ","No aplica","X","X",null,null,null,null,null,null,null,null,null,"2024-07-20"]
["Selección Abreviada Menor Cuantía","SI","SI",null,null,null,null,null,null,null,null,"X","Dirección de Contratación ","Dirección de Contratación ","No aplica","X","X",null,null,null,null,null,null,null,null,null,"2024-08-07"]
["Selección Abreviada Subasta Inversa","SI","SI",null,null,null,null,null,null,null,null,"X","Dirección de Abastecimiento","Dirección de Abastecimiento","No aplica","X","X",null,null,null,null,null,null,null,null,null,"2024-08-19"]
["Selección Abreviada Bolsa de Productos","SI","SI",null,null,null,null,null,null,null,null,"X","Dirección Administrativa ","Dirección Administrativa ","Grupo de Apoyo Logístico","X","X",null,null,null,null,null,null,null,null,null,"2024-10-14"]
["Concurso de Méritos","SI","SI",null,null,null,null,null,null,null,null,"X","X","Dirección Administrativa ","Grupo Gestión de Bienes","X","X",null,null,null,null,null,null,null,null,null,"2024-11-04"]
["Licitación Pública",null,null,null,null,null,null,null,null,null,null,"X","X","Dirección Administrativa ","Grupo Gestión de Calidad para el Servicio y la Atención","X","X",null,null,null,null,null,null,null,null,null,"2024-11-11"]
[null,null,null,null,null,null,null,null,null,null,null,"X","X","Dirección Administrativa ","Grupo Gestión Documental","X","X",null,null,null,null,null,null,null,null,null,"2024-12-08"]
[null,null,null,null,null,null,null,null,null,null,null,"X","X","Dirección Administrativa ","Grupo Infraestructura Inmobiliaria","X","X",null,null,null,null,null,null,null,null,null,"2024-12-25"]
[null,null,null,null,null,null,null,null,null,null,null,"X","X","Dirección Administrativa ","Grupo de Almacén e Inventarios","X","X"]